Cogmind - Beta 11 X7 @@@ ROGUE MODE // 2021.09.15 @ 17:27:48 Player: LU-1G1 Result: Destroyed by D-53 Grenadier with Mini Grenade Launcher Performance ------------- Evolutions (0) 0 Regions Visited (2) 400 Robots Destroyed (25) 125 Value Destroyed (435) 435 Prototype IDs (1) 20 Alien Tech Used (0) 0 Bonus (-157) -157 TOTAL SCORE: 823 Bonus ------- Follower Combat Kills 60 Friendly Fire -217 Cogmind --------- Core Integrity 0/250 Matter 217/300 Energy 49/100 System Corruption 2% Temperature Cool (24) Movement Core (750) Ox14 Location -10/Mines Parts ------- > --- POWER (1) -------- (None) > --- PROPULSION (2) --- (None) > --- UTILITY (2) ------ High-capacity Storage Unit > --- WEAPON (2) ------- Medium Laser Medium Laser > --- INVENTORY (20) --- Ion Engine Light Treads Compact Wheel High-capacity Matter Pod (200) Structural Scanner Faulty Experimental Sensor Array Signal Interpreter Hacking Suite Medium Laser Medium Laser Medium Laser Light Assault Rifle Grenade Launcher Mining Laser Hammer Peak State ------------ > --- POWER ------------ Ion Engine > --- PROPULSION ------- Light Treads Light Treads > --- UTILITY ---------- High-capacity Storage Unit Experimental Sensor Array > --- WEAPON ----------- Assault Rifle Light Assault Rifle > --- INVENTORY -------- Ion Engine Ion Engine Light Treads Compact Wheel High-capacity Matter Pod Structural Scanner Signal Interpreter Hacking Suite Medium Laser Medium Laser Medium Laser Medium Laser Medium Laser Medium Laser Light Assault Rifle Light Assault Rifle Light Assault Rifle Grenade Launcher Mining Laser Hammer [Rating: 17] Favorites ----------- Power Ion Engine Engine Ion Engine Propulsion Light Treads Treads Light Treads Utility Large Storage Unit Device Tractor Beam Storage Large Storage Unit Weapon Light Assault Rifle Energy Gun Small Laser Ballistic Gun Light Assault Rifle Launcher Grenade Launcher Build | -11 -10 -10 ------- Run | Scr Mat Min Slots Evolved . | . . . Power . | . . . Propulsion . | . . . Utility . | . . . Weapon . | . . . Parts Attached 31 | 7 15 9 Power 5 | 1 3 1 Engine 5 | 1 3 1 Core . | . . . Reactor . | . . . Propulsion 6 | 2 4 . Treads 6 | 2 4 . Leg . | . . . Wheel . | . . . Hover . | . . . Flight . | . . . Utility 5 | 2 2 1 Device 2 | 1 . 1 Storage 3 | 1 2 . Processor . | . . . Hackware . | . . . Protection . | . . . Artifact . | . . . Weapon 15 | 2 6 7 Energy Gun 5 | 1 1 3 Energy Cannon . | . . . Ballistic Gun 9 | 1 5 3 Ballistic Cannon . | . . . Launcher 1 | . . 1 Special Weapon . | . . . Impact Weapon . | . . . Slashing Weapon . | . . . Piercing Weapon . | . . . Special Melee Weapon . | . . . Unidentified Prototypes 1 | . . 1 Parts Lost 13 | . 5 8 Power 3 | . 2 1 Propulsion 4 | . 2 2 Utility 1 | . 1 . Weapon 5 | . . 5 Highest Loss Streak 7 | . 3 7 Average Slot Usage (%) 96 | . 97 95 Engine 13 | . 13 13 Treads 27 | . 27 27 Storage 24 | . 25 24 Energy Gun 10 | . 13 . Ballistic Gun 17 | . 14 27 Naked Turns . | . . . Heaviest Build 68 | 13 68 68 Greatest Support 40 | 40 40 40 Greatest Overweight (x) 3 | . 3 1 Average Overweight (x) . | . . 1 Largest Inventory Capacity 20 | 8 20 20 Average Capacity 18 | 7 18 20 Most Carried 20 | 2 20 20 Average Carried 16 | . 16 19 Final Capacity 20 | 8 20 20 Final Carried 20 | 2 20 15 Class Distribution -------------------- 86% | Mutant 13% | Scavenger-Mutant Dominant Class ---------------- Mutant | -10/Materials Scavenger-Mutant | -10/Mines Resources | -11 -10 -10 ----------- Run | Scr Mat Min Matter Collected 710 | 260 371 79 Remotely 309 | 147 162 . Salvage Created 939 | 56 744 139 Parts 56 | 1 51 4 Haulers Intercepted 2 | . 2 . Recyclers Shooed 1 | . . 1 Parts Field Recycled . | . . . Retrieved Matter . | . . . Parts Self-Destructed . | . . . Prevented . | . . . Kills | -11 -10 -10 ------- Run | Scr Mat Min Combat Hostiles Destroyed 19 | . 13 6 Guns 14 | . 13 1 AOE 5 | . . 5 Classes Destroyed 9 | 1 6 2 Tunneler 1 | . 1 . Hauler 2 | . 2 . Recycler 3 | 1 2 . Operator 1 | . 1 . Watcher 2 | . 2 . Swarmer 6 | . 6 . Grunt 8 | . 7 1 Zionite 1 | . . 1 Assembled 5 | . . 5 Thug 1 | . . 1 Best Kill Streak 8 | 1 8 5 Combat Bots Only 5 | . 5 5 Max Kills in Single Turn 3 | 1 1 3 Gunslinging . | . . . Exploded 2 | . . 2 Melee . | . . . Uniques/NPCs Destroyed . | . . . Combat | -11 -10 -10 -------- Run | Scr Mat Min Damage Taken 1917 | . 902 1015 Core 271 | . 110 161 Absorbed by Shields . | . . . Core Remaining (%) 100 | 100 . . Volleys Fired 99 | 3 78 18 Largest 2 | 2 2 2 Hottest 100 | 60 60 100 Shots Fired 192 | 6 153 33 Gun 189 | 6 153 30 Cannon . | . . . Launcher 3 | . . 3 Special . | . . . Kinetic 106 | 3 78 25 Thermal 83 | 3 75 5 Explosive 3 | . . 3 Electromagnetic . | . . . Robot Hit Streak 17 | 3 17 13 Robot Miss Streak 5 | 1 5 2 Penetration Max . | . . . Secondary Targets 2 | . 2 . Max Gunslinging Chain 1 | . 1 . Shots Hit Robots 124 | 4 98 22 Core Hits 72 | 2 43 27 Critical Kills . | . . . Critical Parts Destroyed . | . . . Critical Strikes 1 | . . 1 Burn 1 | . . 1 Melee Attacks . | . . . Impact . | . . . Slashing . | . . . Piercing . | . . . Sneak Attacks . | . . . Combat Hostiles . | . . . Follow-up Attacks . | . . . Damage Inflicted 1773 | 32 993 748 Guns 1202 | 32 976 194 Cannons . | . . . Explosions 549 | . . 549 Melee . | . . . Ramming 22 | . 17 5 Kinetic 563 | 22 383 158 Thermal 639 | 10 593 36 Explosive 549 | . . 549 Electromagnetic . | . . . Impact . | . . . Slashing . | . . . Piercing . | . . . Highest Corruption 2 | . 2 2 Average Corruption 1 | . 1 2 Corruption Purged . | . . . Effects 25 | . 22 3 Message Errors 6 | . 6 . Heat Flow Errors 3 | . 2 1 Energy Discharges 4 | . 4 . Data Loss (minor) 12 | . 10 2 Overload Shots . | . . . Overflow Damage 2 | . . 2 Projectiles . | . . . Explosions 2 | . . 2 Melee . | . . . Knockbacks . | . . . Impact . | . . . Kinetic . | . . . Secondary . | . . . Self-Inflicted Damage 3 | . . 3 Shots 1 | . . 1 Rammed 3 | . 1 2 Targets Rammed 3 | . 1 2 Kicked . | . . . Crushed . | . . . Highest Temperature 206 | 10 206 145 Average Temperature 44 | 7 47 29 Received Heat Transfer 308 | . 231 77 Siege Activations . | . . . Robots Corrupted . | . . . Combat Hostiles . | . . . Parts Fried . | . . . Impact Corruptions . | . . . Robots Melted . | . . . Combat Hostiles . | . . . Parts Melted . | . . . Heat Transferred 1560 | 25 1350 185 Parts Sabotaged . | . . . Parts Stolen . | . . . Parts Stripped . | . . . Power Chain Reactions . | . . . Missiles Intercepted . | . . . Alert | -11 -10 -10 ------- Run | Scr Mat Min Peak Influence 206 | 5 206 71 Initial 3 | . 3 1 Average 30 | 3 38 10 Maximum Alert Level 1 | . 1 . Low Security (%) 99 | 100 98 100 Level 1 . | . 1 . Level 2 . | . . . Level 3 . | . . . Level 4 . | . . . Level 5 . | . . . High Security . | . . . Max Security . | . . . Squads Dispatched 2 | . 2 . Investigation 2 | . 2 . Extermination . | . . . Reinforcement . | . . . Assault . | . . . Garrison . | . . . Intercept . | . . . Construction Impeded . | . . . Haulers Reinforced . | . . . Active Scanning Responses . | . . . Cargo Convoy Interrupts . | . . . Stealth | -11 -10 -10 --------- Run | Scr Mat Min Distress Signals 2 | . 2 . Communications Jammed . | . . . Distress Signals . | . . . Times Spotted 51 | . 23 28 Peak Tracking Total 18 | . 5 18 Tactical Retreats 1 | . . 1 Traps | -11 -10 -10 ------- Run | Scr Mat Min Traps Triggered 5 | . 5 . Indirectly . | . . . Trap Hack Attempts . | . . . Triggered . | . . . Disarmed . | . . . Reprogrammed . | . . . Reused . | . . . Traps Extracted . | . . . Installed . | . . . Triggered . | . . . Machines | -11 -10 -10 ---------- Run | Scr Mat Min Machines Disabled . | . . . Max in Single Turn . | . . . Machines Sabotaged . | . . . Garrisons Compromised . | . . . Overloaded Fab Kills . | . . . Fab Network Shutdowns . | . . . Hacking | -11 -10 -10 --------- Run | Scr Mat Min Machines Accessed 10 | . 10 . Terminals 7 | . 7 . Fabricators . | . . . Repair Stations 1 | . 1 . Recycling Units 2 | . 2 . Scanalyzers . | . . . Garrison Access . | . . . Total Hacks 23 | . 23 . Successful 18 | . 18 . Failed 4 | . 4 . Catastrophic . | . . . Database Lockouts 1 | . 1 . Manual 13 | . 13 . Terminals 15 | . 15 . Fabricators . | . . . Repair Stations 6 | . 6 . Recycling Units 2 | . 2 . Scanalyzers . | . . . Garrison Access . | . . . Terminal Hacks 7 | . 7 . Part Schematic 1 | . 1 . Robot Schematic 1 | . 1 . Robot Analysis 1 | . 1 . Branch Access Points 1 | . 1 . Maintenance Status 1 | . 1 . Zone Layout 2 | . 2 . Fabricator Hacks . | . . . Repair Station Hacks 6 | . 6 . Scan Component 3 | . 3 . Repair 3 | . 3 . Recycling Unit Hacks . | . . . Scanalyzer . | . . . Garrison Access Hacks . | . . . Unauthorized Hacks 5 | . 5 . Terminals 3 | . 3 . Track 1 | . 1 . Botnet 1 | . 1 . Operators 1 | . 1 . Fabricators . | . . . Repair Stations . | . . . Recycling Units 2 | . 2 . Tunnel 2 | . 2 . Scanalyzers . | . . . Garrison Access . | . . . Data Cores Recovered 1 | . 1 . Used . | . . . Hacking Detections 7 | . 7 . Full Trace Events . | . . . Feedback Events . | . . . Feedback Blocked . | . . . Robot Schematics Acquired 1 | . 1 . Robots Built . | . . . Matter . | . . . Time . | . . . Total Robot Build Rating . | . . . Part Schematics Acquired 1 | . 1 . Parts Built . | . . . Matter . | . . . Time . | . . . Total Part Build Rating . | . . . Parts Repaired 3 | . 3 . Time 90 | . 90 . Parts Recycled . | . . . Recycled Matter . | . . . Retrieved Matter . | . . . Retrieved Components . | . . . Parts Scanalyzed . | . . . Part Schematics Acquired . | . . . Parts Damaged . | . . . Bothacking | -11 -10 -10 ------------ Run | Scr Mat Min Used RIF Installer . | . . . Robots Hacked . | . . . Non-combat . | . . . Combat . | . . . Robot Hacks Applied . | . . . Relay Couplers Released . | . . . Robots Rewired . | . . . Allies Hacked . | . . . Hacks Repelled . | . . . Allies | -11 -10 -10 -------- Run | Scr Mat Min Total Allies 3 | . . 3 Largest Group 2 | . . 2 Highest-Rated Group 43 | . . 43 Highest-Rated Ally 31 | . . 31 Total Orders . | . . . Ally Attacks 9 | . . 9 Total Damage 151 | . . 151 Kills 2 | . . 2 Allies Corrupted . | . . . Allies Melted . | . . . Intel | -11 -10 -10 ------- Run | Scr Mat Min Robot Analysis Total 1 | . 1 . Derelict Logs Recovered 2 | . . 2 Drone Launches . | . . . Drone Recoveries . | . . . Exploration | -11 -10 -10 ------------- Run | Scr Mat Min Turns Passed 3189 | 85 2284 820 Spaces Moved 1140 | 42 809 289 Core 2 | 2 . . Treads 1138 | 40 809 289 Legs . | . . . Wheels . | . . . Hover . | . . . Flight . | . . . Fastest Speed 50 | 50 160 260 Average Speed 238 | 154 235 260 Slowest Speed 460 | 160 460 260 Overloaded Moves . | . . . Propulsion Burnouts . | . . . Robots Hopped . | . . . Cave-ins Triggered . | . . . Exploration Rate (%) 54 | 4 96 63 Regions Visited 2 Branch Regions 1 Pre-discovered Areas 3 | . 2 1 Known Exits Taken 1 | . 1 . Unknown Exits Taken 1 | 1 . . Scrap Searched . | . . . Spaces Dug 3 | . . 3 Terrain Destroyed 15 | . . 15 Melee . | . . . Projectile . | . . . AOE 15 | . . 15 Terrain Rammed . | . . . Walls Destroyed . | . . . Machines Disabled . | . . . Actions | -11 -10 -10 --------- Run | Scr Mat Min Total 1431 | 53 1051 327 Wait 122 | . 120 2 Move 1138 | 41 808 289 Hop . | . . . Pick Up 25 | 2 22 1 Fast Attach 18 | 7 10 1 Attach 8 | . 1 7 Detach 2 | . . 2 Swap 5 | . 4 1 Drop 11 | . 7 4 Fire 99 | 3 78 18 Melee . | . . . Ram . | . . . Kick . | . . . Crush 3 | . 1 2 Escape Stasis . | . . . Rewire . | . . . Trap . | . . . Miscellaneous . | . . . Route ------- -11/Scrapyard -10/Materials (discovered 4 exits: [*Mat x3] / *Min) -10/Mines (discovered 2 exits: [*Mat] / [*Exi]) History --------- Turn | Location | Event 7 | -11/Scrapyard | Discovered new exit (range 15) 86 | -11/Scrapyard | Entered Materials 310 | -10/Materials | Build established: Mutant 345 | -10/Materials | Lost 3 parts (1p1n1u) 550 | -10/Materials | Discovered new exit (range 8) 943 | -10/Materials | Discovered new exit (range 8) 1707 | -10/Materials | Central database locked down 1738 | -10/Materials | Identified exit to Mines 1885 | -10/Materials | Repaired Lgt. Treads 1912 | -10/Materials | Repaired Lgt. Treads 1952 | -10/Materials | Repaired Hacking Suite 2050 | -10/Materials | Discovered new exit (range 4) 2370 | -10/Materials | Entered Mines 2418 | -10/Mines | Received a Mining Laser from a helpful Derelict 2523 | -10/Mines | Deemed a non-threat by the Exiles lab entrance 2523 | -10/Mines | Discovered new exit (range 5) 2702 | -10/Mines | Core integrity fell below 50% 2760 | -10/Mines | Discovered new exit (range 6) 2929 | -10/Mines | Learned Materials terminal intel 2950 | -10/Mines | Learned location of Zion (-6) 2976 | -10/Mines | Found a damaged Exp. Sensor Array with a note attached 2981 | -10/Mines | Found Prototype Device 2981 | -10/Mines | Identified Exp. Sensor Array 3025 | -10/Mines | Build established: Scavenger-Mutant 3148 | -10/Mines | Assembled infested the area 3185 | -10/Mines | Core integrity fell below 20% 3190 | -10/Mines | Destroyed by D-53 Grenadier with Mini Grenade Launcher Last Messages --------------- 03163_ as-31708 destroyed. 03163_ as-85839 destroyed. 03165_ U-05 Engineer lays Concrete. 03166_ as-46933 sneak attacks. 03166_ U-05 Engineer system corrupted by crushing effect. 03166_ U-05 Engineer knocked back. 03167_ U-05 Engineer system terminally corrupted. 03170_ as-23602 destroyed. 03170_ Ion Engine destroyed. 03170_ as-46933 destroyed. 03173_ The unstable cave ceiling collapses. 03177_ Lgt. Assault Rifle destroyed. 03177_ as-08696 destroyed. 03179_ The unstable cave ceiling collapses. 03181_ Lgt. Treads destroyed. 03181_ Lgt. Assault Rifle destroyed. 03183_ Lgt. Treads destroyed. 03184_ The unstable cave ceiling collapses. 03186_ Med. Laser destroyed. 03187_ D-53 Grenadier suffers critical hit (Burn). Map ----- +----------------------------------------------------+ | ????????????????????????????????????????# | | ????????????????????????????????????????######## # | | ??????????????????????????????????????????###### # | | ??????????????????????????????????????????# # | | ??????????????????????????????????????????# ###### | | ??????????????????????????????????????????# #????? | | ??????????????????????? ?????????????????# #????? | | ??????????????????????? ????????????????## ##???? | | ??????????????????????? ???????????????## ##??? | | ??????????????????????? #??????????????# #??? | | ??????????????????????? #??????????????# ##?? | | ??????????????? ??????? #??????????????## #?? | | ????????????? #?????? #???????????????## ##? | | ????????????? # ????# #????????????????# #? | | ???????????? ????# #???????????????## #? | | ???????????? ???# ???????????????## ##? | | ?????????? % ??# ??????????????## ###?? | | ????????? ### ????????????### ##???? | | ????????? # # ??????????### #????? | | ???????? d # ######?????# #????? | | ?????????? ! # ####### ##????? | | ?????????# d % r ######???### | | ??????????# #########????????# | | ?????????????# ##????????????#### | | ????????????????### ######???????# | | ??????????????????# @ # ####????# ## | | ??????????????????# #????# ## | | ??????????????????## #????# #### | | ???????????????????## ### #????# #### | | ????????????????????# #### ###????# # | | ????????????????????# ### ##??????#### | | ??????###?????? #???######### ##??????????# # | | ?????# ##??? ???## ### ###########?# # | | ????? ? #???# #?# # | | ????? """ #????# ### # | | ????? """ #?????# #### # | | ????? """ ##???# ## """ #### """ | | ?????# ##??# #### """ # """ | | ????## ? #??# ##??# """ #### """ | | ??### #??? ??# #???# #### #??# | | ### #????# #??# ##???# #??# #??# | | #?????# #??###????# ### #??# #??### | | ####### #?????????# ##?# ##??# #????# % | | ### ####??????####??# ###???# ###### | | #?## ## ##### #????????????# #?????# | | #??##### #???### #????????????# #?????########## | | #??????# #?????# #????????????# #??????????????? | | ##?????# #?????# #?????????#### #??????????????? | | #####?# ###?### #?????????# #??????????????? | | ### ### #?????????# #??????????????? | +----------------------------------------------------+ Best States ------------- Heat Dissipation 25 Energy Generation 10 Energy Capacity 250 Matter Stores 300 Matter Capacity 300 Sight Range 16 Terrain Scan Density 10 Evasion (%) 40 Recoil Reduction 2 Item Schematics ----------------- Huge Storage Unit | -10/Materials | Hacked Robot Schematics ------------------ O-16 Technician | -10/Materials | Hacked Fabricated ------------ Nothing Alien Tech Used ----------------- None Achievements -------------- None Challenges ------------ None Game ------ Seed ImprinterFocalRigger Manual? 0 Play Time 00:19:44 Cumulative 427.1 hours Start 2021.09.15 @ 17:03:30 End 2021.09.15 @ 17:27:48 Sessions 1 Manual Loads 0 Difficulty Rogue Special Mode None Game No. 420 Rogue 205 Adventurer 112 Explorer 103 Win Type - Total 30 Types 21/0/6/2/0/0/0/1/0 Lore% 87 Gallery% 92 Achievement% 76 Wizard Run 0 Options --------- ASCII 0 Keyboard 0 Movement Numpad Keybinds 0 Fullscreen 2 Font 18/TerminusBold Map View 76x50 Tactical HUD 1 Map Filters NONE Filters NONE Steam 1 RUN: 7b56ec53-9207-4d2f-b7af-6600d4b61c13